{"text_format":"1","workbook":"xlsx","n_sheets":7,"sheets":["Dashboard","First","Original","Last","Data","Charts","Sheet3"],"not_rendered":{"charts":9,"images":6,"macros":1,"external_links":1,"defined_names":14,"comments":0,"pivot_tables":0},"unopened":[],"bounds":{"document_bytes":16777216,"sheet_cells":100000,"rows_first":2000,"rows_last":500,"rows_between":2000,"halvings":0,"cell_chars":16384,"cell_head_chars":4096},"cells_cut":0,"cells_raw":0,"read":"whole","date_system":"1900"}

{"sheet":"Dashboard","index":0,"n_rows":3,"n_cols":1,"rows_kept":3,"cut":false,"hidden":true,"merged":[[0,0,1,11]]}
["Quarterly Intervention Specialist and Crisis Respite Datatables"]
[]
[1]

{"sheet":"First","index":1,"n_rows":0,"n_cols":0,"rows_kept":0,"cut":false,"hidden":true,"merged":[]}

{"sheet":"Original","index":2,"n_rows":301,"n_cols":39,"rows_kept":301,"cut":false,"hidden":false,"merged":[[196,13,196,16],[197,13,197,16],[198,13,198,16],[199,13,199,16],[200,13,200,16],[201,13,201,16],[202,13,202,16],[203,13,203,16],[204,13,204,16],[187,13,187,16],[188,13,188,16],[189,13,189,16],[190,13,190,16],[191,13,191,16],[192,13,192,16],[193,13,193,16],[194,13,194,16],[195,13,195,16],[178,13,178,16],[179,13,179,16],[180,13,180,16],[181,13,181,16],[182,13,182,16],[183,13,183,16],[184,13,184,16],[185,13,185,16],[186,13,186,16],[169,13,169,16],[170,13,170,16],[171,13,171,16],[172,13,172,16],[173,13,173,16],[174,13,174,16],[175,13,175,16],[176,13,176,16],[177,13,177,16],[160,13,160,16],[161,13,161,16],[162,13,162,16],[163,13,163,16],[164,13,164,16],[165,13,165,16],[166,13,166,16],[167,13,167,16],[168,13,168,16],[151,13,151,16],[152,13,152,16],[153,13,153,16],[154,13,154,16],[155,13,155,16],[156,13,156,16],[157,13,157,16],[158,13,158,16],[159,13,159,16],[96,15,96,18],[97,15,97,18],[98,15,98,18],[99,15,99,18],[100,15,100,18],[101,15,101,18],[102,15,102,18],[149,13,149,16],[150,13,150,16],[103,0,103,19],[116,4,116,11],[117,4,117,11],[118,4,118,11],[119,4,119,11],[120,4,120,11],[121,4,121,11],[122,4,122,11],[123,4,123,11],[124,4,124,11],[125,4,125,11],[126,4,126,11],[127,4,127,11],[128,4,128,11],[129,4,129,11],[87,15,87,18],[88,15,88,18],[89,15,89,18],[90,15,90,18],[91,15,91,18],[92,15,92,18],[93,15,93,18],[94,15,94,18],[95,15,95,18],[78,15,78,18],[79,15,79,18],[80,15,80,18],[81,15,81,18],[82,15,82,18],[83,15,83,18],[84,15,84,18],[85,15,85,18],[86,15,86,18],[69,15,69,18],[70,15,70,18],[71,15,71,18],[72,15,72,18],[73,15,73,18],[74,15,74,18],[75,15,75,18],[76,15,76,18],[77,15,77,18],[60,15,60,18],[61,15,61,18],[62,15,62,18],[63,15,63,18],[64,15,64,18],[65,15,65,18],[66,15,66,18],[67,15,67,18],[68,15,68,18],[51,15,51,18],[52,15,52,18],[53,15,53,18],[54,15,54,18],[55,15,55,18],[56,15,56,18],[57,15,57,18],[58,15,58,18],[59,15,59,18],[42,15,42,18],[43,15,43,18],[44,15,44,18],[45,15,45,18],[46,15,46,18],[47,15,47,18],[48,15,48,18],[49,15,49,18],[50,15,50,18],[33,15,33,18],[34,15,34,18],[35,15,35,18],[36,15,36,18],[37,15,37,18],[38,15,38,18],[39,15,39,18],[40,15,40,18],[41,15,41,18],[24,15,24,18],[25,15,25,18],[26,15,26,18],[27,15,27,18],[28,15,28,18],[29,15,29,18],[30,15,30,18],[31,15,31,18],[32,15,32,18],[15,15,15,18],[16,15,16,18],[17,15,17,18],[18,15,18,18],[19,15,19,18],[20,15,20,18],[21,15,21,18],[22,15,22,18],[23,15,23,18],[10,15,10,18],[11,15,11,18],[9,0,9,18],[12,15,12,18],[13,15,13,18],[14,15,14,18],[288,0,288,1],[288,3,288,6],[287,0,287,1],[287,3,287,6],[285,0,285,1],[285,3,285,6],[286,0,286,1],[286,3,286,6],[278,0,278,1],[278,3,278,6],[276,7,276,11],[277,3,277,6],[277,7,277,11],[205,0,205,10],[214,0,214,5],[214,6,216,11],[213,0,213,11],[218,0,218,11],[291,0,291,1],[291,3,291,6],[289,0,289,1],[289,3,289,6],[290,0,290,1],[290,3,290,6],[279,0,279,1],[279,3,279,6],[280,0,280,1],[280,3,280,6],[283,0,283,1],[283,3,283,6],[284,0,284,1],[284,3,284,6],[281,0,281,1],[281,3,281,6],[282,0,282,1],[282,3,282,6],[0,0,0,1],[0,2,0,10],[144,0,144,10],[1,11,8,11],[8,0,8,10],[2,0,2,10],[3,0,3,10],[140,4,140,11],[141,4,141,11],[4,0,4,10],[5,0,5,10],[138,4,138,11],[1,0,1,1],[1,2,1,10],[105,4,105,11],[106,4,106,11],[107,4,107,11],[6,0,7,6],[6,7,6,10],[7,7,7,10],[142,4,142,11],[143,4,143,11],[104,0,104,12],[108,4,108,11],[109,4,109,11],[110,4,110,11],[111,4,111,11],[112,4,112,11],[113,4,113,11],[114,4,114,11],[115,4,115,11],[302,0,304,11],[300,11,301,11],[226,3,226,6],[226,0,226,1],[226,7,226,11],[300,6,301,10],[297,0,299,11],[300,0,301,5],[294,0,296,11],[292,0,292,11],[228,0,228,1],[228,3,228,6],[228,7,228,11],[274,0,274,1],[274,3,274,6],[274,7,274,11],[277,0,277,1],[291,7,291,11],[290,7,290,11],[289,7,289,11],[288,7,288,11],[278,7,278,11],[206,0,206,11],[287,7,287,11],[286,7,286,11],[285,7,285,11],[284,7,284,11],[283,7,283,11],[282,7,282,11],[281,7,281,11],[280,7,280,11],[279,7,279,11],[225,7,225,11],[223,3,223,6],[224,3,224,6],[212,0,212,11],[215,4,215,5],[225,3,225,6],[224,0,224,1],[210,9,210,11],[211,9,211,11],[276,0,276,1],[276,3,276,6],[130,4,130,11],[131,4,131,11],[132,4,132,11],[133,4,133,11],[134,4,134,11],[135,4,135,11],[136,4,136,11],[137,4,137,11],[229,7,229,11],[219,0,219,11],[222,3,222,6],[222,7,222,11],[222,0,222,1],[220,0,220,11],[216,4,216,5],[207,9,207,11],[208,9,208,11],[207,0,208,8],[209,0,209,11],[235,7,235,11],[236,7,236,11],[227,0,227,1],[227,3,227,6],[227,7,227,11],[223,7,223,11],[224,7,224,11],[275,0,275,1],[275,3,275,6],[275,7,275,11],[139,4,139,11],[241,7,241,11],[237,7,237,11],[238,7,238,11],[239,7,239,11],[240,7,240,11],[242,7,242,11],[243,7,243,11],[244,7,244,11],[217,0,217,11],[210,0,211,8],[145,0,146,6],[145,7,145,10],[146,7,146,10],[147,0,147,10],[148,0,148,9],[221,0,221,11],[225,0,225,1],[223,0,223,1],[230,7,230,11],[231,7,231,11],[232,7,232,11],[233,7,233,11],[234,7,234,11],[245,7,245,11],[246,7,246,11],[229,3,229,6],[230,3,230,6],[231,3,231,6],[232,3,232,6],[233,3,233,6],[234,3,234,6],[235,3,235,6],[236,3,236,6],[237,3,237,6],[238,3,238,6],[239,3,239,6],[240,3,240,6],[241,3,241,6],[242,3,242,6],[243,3,243,6],[247,7,247,11],[248,7,248,11],[249,7,249,11],[250,7,250,11],[251,7,251,11],[252,7,252,11],[253,7,253,11],[254,7,254,11],[255,7,255,11],[256,7,256,11],[257,7,257,11],[258,7,258,11],[259,7,259,11],[260,7,260,11],[261,7,261,11],[262,7,262,11],[263,7,263,11],[264,7,264,11],[265,7,265,11],[266,7,266,11],[267,7,267,11],[268,7,268,11],[269,7,269,11],[270,7,270,11],[271,7,271,11],[272,7,272,11],[273,7,273,11],[244,3,244,6],[245,3,245,6],[246,3,246,6],[247,3,247,6],[248,3,248,6],[249,3,249,6],[250,3,250,6],[251,3,251,6],[252,3,252,6],[253,3,253,6],[254,3,254,6],[255,3,255,6],[256,3,256,6],[257,3,257,6],[258,3,258,6],[259,3,259,6],[260,3,260,6],[261,3,261,6],[262,3,262,6],[263,3,263,6],[264,3,264,6],[265,3,265,6],[266,3,266,6],[267,3,267,6],[268,3,268,6],[269,3,269,6],[270,3,270,6],[271,3,271,6],[272,3,272,6],[273,3,273,6],[229,0,229,1],[230,0,230,1],[231,0,231,1],[232,0,232,1],[233,0,233,1],[234,0,234,1],[235,0,235,1],[236,0,236,1],[237,0,237,1],[238,0,238,1],[239,0,239,1],[240,0,240,1],[241,0,241,1],[242,0,242,1],[243,0,243,1],[244,0,244,1],[245,0,245,1],[246,0,246,1],[247,0,247,1],[248,0,248,1],[249,0,249,1],[250,0,250,1],[251,0,251,1],[252,0,252,1],[253,0,253,1],[254,0,254,1],[255,0,255,1],[256,0,256,1],[257,0,257,1],[258,0,258,1],[259,0,259,1],[260,0,260,1],[261,0,261,1],[262,0,262,1],[272,0,272,1],[273,0,273,1],[263,0,263,1],[264,0,264,1],[265,0,265,1],[266,0,266,1],[267,0,267,1],[268,0,268,1],[269,0,269,1],[270,0,270,1],[271,0,271,1]]}
["LIDDA Comp Code/Name:",null,null,null,null,null,null,null,null,null,null,null,18,20]
["Reporting Period:",null,null,null,null,null,null,null,null,null,null,null,230,325]
[null,null,null,null,null,null,null,null,null,null,null,null,350,443]
["Quarterly Crisis Intervention Specialist and Crisis Respite Outcome Measure Data",null,null,null,null,null,null,null,null,null,null,null,132,219]
["Enter Data for the quarterly reporting period identified above as it pertains to the LIDDA"]
[]
["1. Enter the total number of calls from an MCOT related to individuals with IDD for this reporting quarter.",null,null,null,null,null,null,"Type in the total number of calls below"]
[]
[]
["1.(a) Complete the list below with information for all individuals with IDD for which a call from an MCOT occurred. \n                                                     (Entries must be equal to the number entered in the box above)\n                                   (If multiple calls occurred this quarter for one individual enter that individual's name separately for each call.) ",null,null,null,null,null,null,null,null,null,null,null,null,null,null,null,null,null,null,null,null,"In Person",{"$f":"COUNTIF(D12:D103,\"In Person\")","v":0},"Yes",{"$f":"COUNTIF(E12:E103,\"Yes\")","v":0},"IDD Services",{"$f":"COUNTIF(F12:F103,\"IDD Services\")","v":0},"Yes",{"$f":"COUNTIF(G12:G103,\"Yes\")","v":0},"Yes",{"$f":"COUNTIF(H12:H103,\"Yes\")","v":0},"Yes",{"$f":"COUNTIF(I12:I103,\"Yes\")","v":0},"Yes",{"$f":"COUNTIF(J12:J103,\"Yes\")","v":0},"Yes",{"$f":"COUNTIF(K12:K103,\"Yes\")","v":0},"In home",{"$f":"COUNTIF(L12:L103,\"In home\")","v":0}]
["Last Name","First Name","Care ID","Type of response provided to MCOT","Was a crisis intervention specialist available?\n\nIf \"No\" is selected enter reason in table 1(b)","Type of referrals made for the individual in crisis or following a crisis event?","Was law enforcement notified?","Was the individual transported to a hospital or jail?","Was the individual reunified to their home and community setting following a crisis event? ","Was the individual at risk of requiring crisis services by exhibiting repeated and severe behavior disturbances that jeopardize the individual's safety or current living arrangement?","Was the individual referred to crisis respite ? ","What type of respite was provided?","Encounter Begin Date","Encounter End Date","Total Days","Additional Notes/Comments",null,null,null,null,null,"Phone Call",{"$f":"COUNTIF(D12:D103,\"Phone Call\")","v":0},"No",{"$f":"COUNTIF(E12:E103,\"No\")","v":0},"MH Services",{"$f":"COUNTIF(F12:F103,\"MH Services\")","v":0},"No",{"$f":"COUNTIF(G12:G103,\"No\")","v":0},"No",{"$f":"COUNTIF(H12:H103,\"No\")","v":0},"No",{"$f":"COUNTIF(I12:I103,\"No\")","v":0},"No",{"$f":"COUNTIF(J12:J103,\"No\")","v":0},"No",{"$f":"COUNTIF(K12:K103,\"No\")","v":0},"Out of home",{"$f":"COUNTIF(L12:L103,\"Out of home\")","v":0}]
[null,null,null,null,null,null,null,null,null,null,null,null,null,null,{"$f":"DATEDIF(M12,N12,\"D\")","v":0},null,null,null,null,null,null,"Text",{"$f":"COUNTIF(D12:D103,\"Text\")","v":0},null,null,"Medical Services",{"$f":"COUNTIF(F12:F103,\"Medical Services\")","v":0}]
[null,null,null,null,null,null,null,null,null,null,null,null,null,null,0,null,null,null,null,null,null,"Email",{"$f":"COUNTIF(D12:D103,\"Email\")","v":0},null,null,"IDD & MH Services",{"$f":"COUNTIF(F12:F103,\"IDD & MH Services\")","v":0}]
[null,null,null,null,null,null,null,null,null,null,null,null,null,null,0,null,null,null,null,null,null,"Fax",{"$f":"COUNTIF(D12:D103,\"Fax \")","v":0},null,null,"IDD & MH & Medical Services",{"$f":"COUNTIF(F12:F103,\"IDD & MH & Medical Services\")","v":0}]
[null,null,null,null,null,null,null,null,null,null,null,null,null,null,0,null,null,null,null,null,null,"Other",{"$f":"COUNTIF(D12:D103,\"Other\")","v":0},null,null,"IDD & Medical Services",{"$f":"COUNTIF(F12:F103,\"IDD & Medical Services\")","v":0}]
[null,null,null,null,null,null,null,null,null,null,null,null,null,null,0,null,null,null,null,null,null,null,null,null,null,"MH & Medical Services",{"$f":"COUNTIF(F12:F103,\"MH & Medical Services\")","v":0}]
[null,null,null,null,null,null,null,null,null,null,null,null,null,null,0]
[null,null,null,null,null,null,null,null,null,null,null,null,null,null,0]
[null,null,null,null,null,null,null,null,null,null,null,null,null,null,0]
[null,null,null,null,null,null,null,null,null,null,null,null,null,null,0]
[null,null,null,null,null,null,null,null,null,null,null,null,null,null,0]
[null,null,null,null,null,null,null,null,null,null,null,null,null,null,0]
[null,null,null,null,null,null,null,null,null,null,null,null,null,null,0]
[null,null,null,null,null,null,null,null,null,null,null,null,null,null,0]
[null,null,null,null,null,null,null,null,null,null,null,null,null,null,0]
[null,null,null,null,null,null,null,null,null,null,null,null,null,null,0]
[null,null,null,null,null,null,null,null,null,null,null,null,null,null,0]
[null,null,null,null,null,null,null,null,null,null,null,null,null,null,0]
[null,null,null,null,null,null,null,null,null,null,null,null,null,null,0]
[null,null,null,null,null,null,null,null,null,null,null,null,null,null,0]
[null,null,null,null,null,null,null,null,null,null,null,null,null,null,0]
[null,null,null,null,null,null,null,null,null,null,null,null,null,null,0]
[null,null,null,null,null,null,null,null,null,null,null,null,null,null,0]
[null,null,null,null,null,null,null,null,null,null,null,null,null,null,0]
[null,null,null,null,null,null,null,null,null,null,null,null,null,null,0]
[null,null,null,null,null,null,null,null,null,null,null,null,null,null,0]
[null,null,null,null,null,null,null,null,null,null,null,null,null,null,0]
[null,null,null,null,null,null,null,null,null,null,null,null,null,null,0]
[null,null,null,null,null,null,null,null,null,null,null,null,null,null,0]
[null,null,null,null,null,null,null,null,null,null,null,null,null,null,0]
[null,null,null,null,null,null,null,null,null,null,null,null,null,null,0]
[null,null,null,null,null,null,null,null,null,null,null,null,null,null,0]
[null,null,null,null,null,null,null,null,null,null,null,null,null,null,0]
[null,null,null,null,null,null,null,null,null,null,null,null,null,null,{"$f":"DATEDIF(M44,N44,\"D\")","v":0}]
[null,null,null,null,null,null,null,null,null,null,null,null,null,null,0]
[null,null,null,null,null,null,null,null,null,null,null,null,null,null,0]
[null,null,null,null,null,null,null,null,null,null,null,null,null,null,0]
[null,null,null,null,null,null,null,null,null,null,null,null,null,null,0]
[null,null,null,null,null,null,null,null,null,null,null,null,null,null,0]
[null,null,null,null,null,null,null,null,null,null,null,null,null,null,0]
[null,null,null,null,null,null,null,null,null,null,null,null,null,null,0]
[null,null,null,null,null,null,null,null,null,null,null,null,null,null,0]
[null,null,null,null,null,null,null,null,null,null,null,null,null,null,0]
[null,null,null,null,null,null,null,null,null,null,null,null,null,null,0]
[null,null,null,null,null,null,null,null,null,null,null,null,null,null,0,null,null,null,null,null,null,null,null,null,null,"IDD Services",{"$f":"COUNTIF(D151:D205,\"IDD Services\")","v":0},"Yes",{"$f":"COUNTIF(E151:E205,\"Yes\")","v":0},"Yes",{"$f":"COUNTIF(F151:F205,\"Yes\")","v":0},"Yes",{"$f":"COUNTIF(G151:G205,\"Yes\")","v":0},"Yes",{"$f":"COUNTIF(H151:H205,\"Yes\")","v":0},"Yes",{"$f":"COUNTIF(I151:I205,\"Yes\")","v":0},"In home",{"$f":"COUNTIF(J151:J205,\"In home\")","v":0}]
[null,null,null,null,null,null,null,null,null,null,null,null,null,null,0,null,null,null,null,null,null,null,null,null,null,"MH Services",{"$f":"COUNTIF(D151:D205,\"MH Services\")","v":0},"No",{"$f":"COUNTIF(E151:E205,\"No\")","v":0},"No",{"$f":"COUNTIF(F151:F205,\"No\")","v":0},"No",{"$f":"COUNTIF(G151:G205,\"No\")","v":0},"No",{"$f":"COUNTIF(H151:H205,\"No\")","v":0},"No",{"$f":"COUNTIF(I151:I205,\"No\")","v":0},"Out of home",{"$f":"COUNTIF(J151:J205,\"Out of home\")","v":0}]
[null,null,null,null,null,null,null,null,null,null,null,null,null,null,0,null,null,null,null,null,null,null,null,null,null,"Medical Services",{"$f":"COUNTIF(D151:D205,\"Medical Services\")","v":0}]
[null,null,null,null,null,null,null,null,null,null,null,null,null,null,0,null,null,null,null,null,null,null,null,null,null,"IDD & MH Services",{"$f":"COUNTIF(D151:D205,\"IDD & MH Services\")","v":0}]
[null,null,null,null,null,null,null,null,null,null,null,null,null,null,0,null,null,null,null,null,null,null,null,null,null,"IDD & MH & Medical Services",{"$f":"COUNTIF(D151:D205,\"IDD & MH & Medical Services\")","v":0}]
[null,null,null,null,null,null,null,null,null,null,null,null,null,null,0,null,null,null,null,null,null,null,null,null,null,"IDD & Medical Services",{"$f":"COUNTIF(D151:D205,\"IDD & Medical Services\")","v":0}]
[null,null,null,null,null,null,null,null,null,null,null,null,null,null,0,null,null,null,null,null,null,null,null,null,null,"MH & Medical Services",{"$f":"COUNTIF(D151:D205,\"MH & Medical Services\")","v":0}]
[null,null,null,null,null,null,null,null,null,null,null,null,null,null,0]
[null,null,null,null,null,null,null,null,null,null,null,null,null,null,0]
[null,null,null,null,null,null,null,null,null,null,null,null,null,null,0]
[null,null,null,null,null,null,null,null,null,null,null,null,null,null,0]
[null,null,null,null,null,null,null,null,null,null,null,null,null,null,0]
[null,null,null,null,null,null,null,null,null,null,null,null,null,null,0]
[null,null,null,null,null,null,null,null,null,null,null,null,null,null,0]
[null,null,null,null,null,null,null,null,null,null,null,null,null,null,0]
[null,null,null,null,null,null,null,null,null,null,null,null,null,null,0]
[null,null,null,null,null,null,null,null,null,null,null,null,null,null,0]
[null,null,null,null,null,null,null,null,null,null,null,null,null,null,0]
[null,null,null,null,null,null,null,null,null,null,null,null,null,null,0]
[null,null,null,null,null,null,null,null,null,null,null,null,null,null,0]
[null,null,null,null,null,null,null,null,null,null,null,null,null,null,0]
[null,null,null,null,null,null,null,null,null,null,null,null,null,null,{"$f":"DATEDIF(M76,N76,\"D\")","v":0}]
[null,null,null,null,null,null,null,null,null,null,null,null,null,null,0]
[null,null,null,null,null,null,null,null,null,null,null,null,null,null,0]
[null,null,null,null,null,null,null,null,null,null,null,null,null,null,0]
[null,null,null,null,null,null,null,null,null,null,null,null,null,null,0]
[null,null,null,null,null,null,null,null,null,null,null,null,null,null,0]
[null,null,null,null,null,null,null,null,null,null,null,null,null,null,0]
[null,null,null,null,null,null,null,null,null,null,null,null,null,null,0]
[null,null,null,null,null,null,null,null,null,null,null,null,null,null,0]
[null,null,null,null,null,null,null,null,null,null,null,null,null,null,0]
[null,null,null,null,null,null,null,null,null,null,null,null,null,null,0]
[null,null,null,null,null,null,null,null,null,null,null,null,null,null,0]
[null,null,null,null,null,null,null,null,null,null,null,null,null,null,0]
[null,null,null,null,null,null,null,null,null,null,null,null,null,null,0]
[null,null,null,null,null,null,null,null,null,null,null,null,null,null,0]
[null,null,null,null,null,null,null,null,null,null,null,null,null,null,0]
[null,null,null,null,null,null,null,null,null,null,null,null,null,null,0]
[null,null,null,null,null,null,null,null,null,null,null,null,null,null,0]
[null,null,null,null,null,null,null,null,null,null,null,null,null,null,0]
[null,null,null,null,null,null,null,null,null,null,null,null,null,null,0]
[null,null,null,null,null,null,null,null,null,null,null,null,null,null,0]
[null,null,null,null,null,null,null,null,null,null,null,null,null,null,0]
[null,null,null,null,null,null,null,null,null,null,null,null,null,null,0]
[null,null,null,null,null,null,null,null,null,null,null,null,null,null,0]
[null,null,null,null,null,null,null,null,null,null,null,null,null,null,0]
[null,null,null,null,null,null,null,null,null,null,null,null,null,null,0]
[null,null,null,null,null,null,null,null,null,null,null,null,null,null,0]
[null,null,null,null,null,null,null,null,null,null,null,null,null,null,0]
[]
["1.(b) For all individuals which no crisis intervention specialist was available complete this table. "]
["Last Name","First Name","Care ID","Was a crisis intervention specialist available?","Provide a reason a crisis intervention specialist was not available for the listed individuals if \"No\" was selected in previous table for that individual.",null,null,null,null,null,null,null,"\n\n\n\nCoding"]
[{"$f":"A12","v":0},{"$f":"B12","v":0},{"$f":"C12","v":0}]
[0,0,0]
[0,0,0]
[0,0,0]
[0,0,0]
[0,0,0]
[0,0,0]
[0,0,0]
[0,0,0]
[0,0,0]
[0,0,0]
[0,0,0]
[0,0,0]
[0,0,0]
[0,0,0]
[0,0,0]
[0,0,0]
[0,0,0]
[0,0,0]
[0,0,0]
[0,0,0]
[0,0,0]
[0,0,0]
[0,0,0]
[0,0,0]
[0,0,0]
[0,0,0]
[0,0,0]
[0,0,0]
[0,0,0]
[0,0,0]
[0,0,0]
[0,0,0]
[0,0,0]
[0,0,0]
[0,0,0]
[0,0,0]
[0,0,0]
[]
["2. Enter the total number of calls related to individuals with IDD in crisis who were not referred by an MCOT.",null,null,null,null,null,null,"Type in the total number of calls below"]
[]
[]
["2.(a) Complete the list below with information for all individuals with IDD in crisis who were not referred by an MCOT. \n                                                     (Entries must be equal to the number entered in the box above)\n                                   (If multiple calls occurred this quarter for one individual enter that individual's name separately for each call.) "]
["Last Name","First Name","Care ID","\n\n\n\n\n\n\n\n\n\n\n\n\nType of referrals made for the individual?","\n\n\n\n\n\n\n\n\n\n\n\n\nWas law enforcement notified?","\n\n\n\n\n\n\n\n\n\n\nWas the individual transported to a hospital or jail?","\n\n\n\n\n\n\n\nWas the individual reunified to their home and community setting following a crisis event? ","\n\n\nWas the individual at risk of requiring crisis services by exhibiting repeated and severe behavior disturbances that jeopardize the individual's safety or current living arrangement?","\n\n\n\n\n\n\n\n\n\n\n\nWas the individual referred to crisis respite ? ","\n\n\n\n\n\n\n\n\n\n\n\n\nWhat type of respite was provided?","Encounter Begin Date","Encounter End Date","Total Days","Additional Notes/Comments",null,null,null,null,null,null,null,null,null,null,null,"IDD Services",{"$f":"COUNTIF(D151:D205,\"IDD Services\")","v":0},"Yes",{"$f":"COUNTIF(E151:E205,\"Yes\")","v":0},"Yes",{"$f":"COUNTIF(F151:F205,\"Yes\")","v":0},"Yes",{"$f":"COUNTIF(G151:G205,\"Yes\")","v":0},"Yes",{"$f":"COUNTIF(H151:H205,\"Yes\")","v":0},"Yes",{"$f":"COUNTIF(I151:I205,\"Yes\")","v":0},"In home",{"$f":"COUNTIF(J151:J205,\"In home\")","v":0}]
[null,null,null,null,null,null,null,null,null,null,null,null,{"$f":"DATEDIF(K151,L151,\"D\")","v":0},null,null,null,null,null,null,null,null,null,null,null,null,"MH Services",{"$f":"COUNTIF(D151:D205,\"MH Services\")","v":0},"No",{"$f":"COUNTIF(E151:E205,\"No\")","v":0},"No",{"$f":"COUNTIF(F151:F205,\"No\")","v":0},"No",{"$f":"COUNTIF(G151:G205,\"No\")","v":0},"No",{"$f":"COUNTIF(H151:H205,\"No\")","v":0},"No",{"$f":"COUNTIF(I151:I205,\"No\")","v":0},"Out of home",{"$f":"COUNTIF(J151:J205,\"Out of home\")","v":0}]
[null,null,null,null,null,null,null,null,null,null,null,null,0,null,null,null,null,null,null,null,null,null,null,null,null,"Medical Services",{"$f":"COUNTIF(D151:D205,\"Medical Services\")","v":0}]
[null,null,null,null,null,null,null,null,null,null,null,null,0,null,null,null,null,null,null,null,null,null,null,null,null,"IDD & MH Services",{"$f":"COUNTIF(D151:D205,\"IDD & MH Services\")","v":0}]
[null,null,null,null,null,null,null,null,null,null,null,null,0,null,null,null,null,null,null,null,null,null,null,null,null,"IDD & MH & Medical Services",{"$f":"COUNTIF(D151:D205,\"IDD & MH & Medical Services\")","v":0}]
[null,null,null,null,null,null,null,null,null,null,null,null,0,null,null,null,null,null,null,null,null,null,null,null,null,"IDD & Medical Services",{"$f":"COUNTIF(D151:D205,\"IDD & Medical Services\")","v":0}]
[null,null,null,null,null,null,null,null,null,null,null,null,0,null,null,null,null,null,null,null,null,null,null,null,null,"MH & Medical Services",{"$f":"COUNTIF(D151:D205,\"MH & Medical Services\")","v":0}]
[null,null,null,null,null,null,null,null,null,null,null,null,0]
[null,null,null,null,null,null,null,null,null,null,null,null,0]
[null,null,null,null,null,null,null,null,null,null,null,null,0]
[null,null,null,null,null,null,null,null,null,null,null,null,0]
[null,null,null,null,null,null,null,null,null,null,null,null,0]
[null,null,null,null,null,null,null,null,null,null,null,null,0]
[null,null,null,null,null,null,null,null,null,null,null,null,0]
[null,null,null,null,null,null,null,null,null,null,null,null,0]
[null,null,null,null,null,null,null,null,null,null,null,null,0]
[null,null,null,null,null,null,null,null,null,null,null,null,0]
[null,null,null,null,null,null,null,null,null,null,null,null,0]
[null,null,null,null,null,null,null,null,null,null,null,null,0]
[null,null,null,null,null,null,null,null,null,null,null,null,0]
[null,null,null,null,null,null,null,null,null,null,null,null,0]
[null,null,null,null,null,null,null,null,null,null,null,null,0]
[null,null,null,null,null,null,null,null,null,null,null,null,0]
[null,null,null,null,null,null,null,null,null,null,null,null,0]
[null,null,null,null,null,null,null,null,null,null,null,null,0]
[null,null,null,null,null,null,null,null,null,null,null,null,0]
[null,null,null,null,null,null,null,null,null,null,null,null,0]
[null,null,null,null,null,null,null,null,null,null,null,null,0]
[null,null,null,null,null,null,null,null,null,null,null,null,0]
[null,null,null,null,null,null,null,null,null,null,null,null,0]
[null,null,null,null,null,null,null,null,null,null,null,null,0]
[null,null,null,null,null,null,null,null,null,null,null,null,0]
[null,null,null,null,null,null,null,null,null,null,null,null,0]
[null,null,null,null,null,null,null,null,null,null,null,null,{"$f":"DATEDIF(K183,L183,\"D\")","v":0}]
[null,null,null,null,null,null,null,null,null,null,null,null,0]
[null,null,null,null,null,null,null,null,null,null,null,null,0]
[null,null,null,null,null,null,null,null,null,null,null,null,0]
[null,null,null,null,null,null,null,null,null,null,null,null,0]
[null,null,null,null,null,null,null,null,null,null,null,null,0]
[null,null,null,null,null,null,null,null,null,null,null,null,0]
[null,null,null,null,null,null,null,null,null,null,null,null,0]
[null,null,null,null,null,null,null,null,null,null,null,null,0]
[null,null,null,null,null,null,null,null,null,null,null,null,0]
[null,null,null,null,null,null,null,null,null,null,null,null,0]
[null,null,null,null,null,null,null,null,null,null,null,null,0]
[null,null,null,null,null,null,null,null,null,null,null,null,0]
[null,null,null,null,null,null,null,null,null,null,null,null,0]
[null,null,null,null,null,null,null,null,null,null,null,null,0]
[null,null,null,null,null,null,null,null,null,null,null,null,0]
[null,null,null,null,null,null,null,null,null,null,null,null,0]
[null,null,null,null,null,null,null,null,null,null,null,null,0]
[null,null,null,null,null,null,null,null,null,null,null,null,0]
[null,null,null,null,null,null,null,null,null,null,null,null,0]
[null,null,null,null,null,null,null,null,null,null,null,null,0]
[null,null,null,null,null,null,null,null,null,null,null,null,0]
[null,null,null,null,null,null,null,null,null,null,null,null,0]
[]
[]
["3. Enter the total number of individuals with IDD referred to crisis respite who did not transition back to their home from crisis respite within 14 calendar days. ",null,null,null,null,null,null,null,null,"Type in total number below"]
[]
[]
["4. Enter the total number of caregivers and paid providers to whom a crisis intervention specialist provided training and consultation. ",null,null,null,null,null,null,null,null,"Type in total number below"]
[]
[]
["4.(a) Indicate how individuals/agencies were notified of these educational opportunities by selecting \"Yes\" or \"No\" in the appropriate boxes next to the activity below."]
[]
["Face to Face","Public announcement","Flyer/Mailer","Email","Telephone"]
[]
[]
["If other means of notification was used please list below: "]
[]
["4.(b) Provide the individuals/agencies names below to whom educational opportunities where provided. Include the number of attendance, select from the dropdown box how training was provided and provide a brief description of the content of the training below."]
[]
["Name or Agency",null,"Number attending ","Training was conducted as \n(select option below)\ntraining session",null,null,null,"Content of Training Provided "]
[]
[]
[]
[]
[]
[]
[]
[]
[]
[]
[]
[]
[]
[]
[]
[]
[]
[]
[]
[]
[]
[]
[]
[]
[]
[]
[]
[]
[]
[]
[]
[]
[]
[]
[]
[]
[]
[]
[]
[]
[]
[]
[]
[]
[]
[]
[]
[]
[]
[]
[]
[]
[]
[null,null,null,null,null,null,null,null,null,null,null,null,null,null,262,260,262,257]
[]
[]
[]
[]
[]
[]
[]
[]
[]
[]
[]
[]
[]
[]
[]
[]
[]
["After the document has been completely filled out, save it as Comp code, “Quarterly Crisis Service Data Reporting”, fiscal year, and quarter.  Example: “380 Quarterly Crisis Data Reporting FY16 Q1”would be a title for Tri-County Services."]
[]
[]
["Once this document has been saved with the appropriate title, email the document to  "]
[]
[]
["IDDPerformance.Contracts@hhsc.state.tx.us",null,null,null,null,null,"no later than the 15th day of the month "]

{"sheet":"Last","index":3,"n_rows":0,"n_cols":0,"rows_kept":0,"cut":false,"hidden":true,"merged":[]}

{"sheet":"Data","index":4,"n_rows":33,"n_cols":24,"rows_kept":33,"cut":false,"hidden":true,"merged":[]}
["In Person","Yes","IDD Services","In home","Face-to-Face"]
["Phone Call","No","MH Services","Out of home","Webinar"]
["Text",null,"Medical Services",null,"Class Room Setting"]
["Email",null,"IDD & MH Services",null,"Panel"]
["Fax ",null,"IDD & MH & Medical Services"]
["Other",null,"IDD & Medical Services"]
[null,null,"MH & Medical Services"]
[]
[]
[]
[]
["Type of response provided to MCOT","\n\n\n\n\n\n\n\n\n\n\n\n\n\nTotals","Was a crisis intervention specialist available?\n\nIf \"No\" is selected enter reason in table 1(b)","\n\n\n\n\n\n\n\n\n\n\n\n\n\nTotals:2","Type of referrals made for the individual in crisis or following a crisis event?","\n\n\n\n\n\n\n\n\n\n\n\n\n\nTotals:3","Was law enforcement notified?","\n\n\n\n\n\n\n\n\n\n\n\n\n\nTotals:4","Was the individual transported to a hospital or jail?","\n\n\n\n\n\n\n\n\n\n\n\n\n\nTotals:5","Was the individual reunified to their home and community setting following a crisis event? ","\n\n\n\n\n\n\n\n\n\n\n\n\n\nTotals:6","Was the individual at risk of requiring crisis services by exhibiting repeated and severe behavior disturbances that jeopardize the individual's safety or current living arrangement?","\n\n\n\n\n\n\n\n\n\n\n\n\n\nTotals:7","Was the individual referred to crisis respite ? ","\n\n\n\n\n\n\n\n\n\n\n\n\n\nTotals:8","What type of respite was provided?","\n\n\n\n\n\n\n\n\n\n\n\n\n\nTotals:9"]
["In Person",{"$f":"SUM(First:Last!W10)","v":0},"Yes",{"$f":"SUM(First:Last!Y10)","v":0},"IDD Services",{"$f":"SUM(First:Last!AA10)","v":0},"Yes",{"$f":"SUM(First:Last!AC10)","v":0},"Yes",{"$f":"SUM(First:Last!AE10)","v":0},"Yes",{"$f":"SUM(First:Last!AG10)","v":0},"Yes",{"$f":"SUM(First:Last!AI10)","v":0},"Yes",{"$f":"SUM(First:Last!AK10)","v":0},"In home",{"$f":"SUM(First:Last!AM10)","v":0}]
["Phone Call",{"$f":"SUM(First:Last!W11)","v":0},"No",{"$f":"SUM(First:Last!Y11)","v":0},"MH Services",{"$f":"SUM(First:Last!AA11)","v":0},"No",{"$f":"SUM(First:Last!AC11)","v":0},"No",{"$f":"SUM(First:Last!AE11)","v":0},"No",{"$f":"SUM(First:Last!AG11)","v":0},"No",{"$f":"SUM(First:Last!AI11)","v":0},"No",{"$f":"SUM(First:Last!AK11)","v":0},"Out of home",{"$f":"SUM(First:Last!AM11)","v":0}]
["Text",{"$f":"SUM(First:Last!W12)","v":0},null,0,"Medical Services",{"$f":"SUM(First:Last!AA12)","v":0},null,0,null,0,null,0,null,0,null,0,null,0]
["Email",{"$f":"SUM(First:Last!W13)","v":0},null,0,"IDD & MH Services",{"$f":"SUM(First:Last!AA13)","v":0},null,0,null,0,null,0,null,0,null,0,null,0]
["Fax ",{"$f":"SUM(First:Last!W14)","v":0},null,0,"IDD & MH & Medical Services",{"$f":"SUM(First:Last!AA14)","v":0},null,0,null,0,null,0,null,0,null,0,null,0]
["Other",{"$f":"SUM(First:Last!W15)","v":0},null,0,"IDD & Medical Services",{"$f":"SUM(First:Last!AA15)","v":0},null,0,null,0,null,0,null,0,null,0,null,0]
[null,0,null,0,"MH & Medical Services",{"$f":"SUM(First:Last!AA16)","v":0},null,0,null,0,null,0,null,0,null,0,null,0]
["Sub Total:",{"$f":"SUM(B13:B19)","v":0},"Sub Total:",{"$f":"SUM(D13:D19)","v":0},"Sub Total:",{"$f":"SUM(F13:F19)","v":0},"Sub Total:",{"$f":"SUM(H13:H19)","v":0},"Sub Total:",{"$f":"SUM(J13:J19)","v":0},"Sub Total:",{"$f":"SUM(L13:L19)","v":0},"Sub Total:",{"$f":"SUM(N13:N19)","v":0},"Sub Total:",{"$f":"SUM(P13:P19)","v":0},"Sub Total:",{"$f":"SUM(R13:R19)","v":0},"Grand Total:",{"$f":"SUM(B20,D20,F20,H20,J20,L20,N20,P20,R20)","v":0}]
[]
[]
[]
[null,null,null,null,null,null,null,null,null,null,null,null,null,null,null,null,null,null,null,null,null,null,"Combined Total:",{"$f":"SUM(Data!T20,Data!P33)","v":0}]
["\n\n\n\n\n\n\n\n\n\n\n\n\nType of referrals made for the individual?","\n\n\n\n\n\n\n\n\n\n\n\n\n\n\nTotals:","\n\n\n\n\n\n\n\n\n\n\n\n\nWas law enforcement notified?","\n\n\n\n\n\n\n\n\n\n\n\n\n\n\nTotals:2","\n\n\n\n\n\n\n\n\n\n\nWas the individual transported to a hospital or jail?","\n\n\n\n\n\n\n\n\n\n\n\n\n\n\nTotals:3","\n\n\n\n\n\n\n\nWas the individual reunified to their home and community setting following a crisis event? ","\n\n\n\n\n\n\n\n\n\n\n\n\n\n\nTotals:4","\n\n\nWas the individual at risk of requiring crisis services by exhibiting repeated and severe behavior disturbances that jeopardize the individual's safety or current living arrangement?","\n\n\n\n\n\n\n\n\n\n\n\n\n\n\nTotals:5","\n\n\n\n\n\n\n\n\n\n\n\nWas the individual referred to crisis respite ? ","\n\n\n\n\n\n\n\n\n\n\n\n\n\n\nTotals:6","\n\n\n\n\n\n\n\n\n\n\n\n\nWhat type of respite was provided?","\n\n\n\n\n\n\n\n\n\n\n\n\n\n\nTotals:7"]
["IDD Services",{"$f":"SUM(First:Last!AA55)","v":0},"Yes",{"$f":"SUM(First:Last!AC55)","v":0},"Yes",{"$f":"SUM(First:Last!AE55)","v":0},"Yes",{"$f":"SUM(First:Last!AG55)","v":0},"Yes",{"$f":"SUM(First:Last!AI55)","v":0},"Yes",{"$f":"SUM(First:Last!AK55)","v":0},"In home",{"$f":"SUM(First:Last!AM55)","v":0}]
["MH Services",{"$f":"SUM(First:Last!AA56)","v":0},"No",{"$f":"SUM(First:Last!AC56)","v":0},"No",{"$f":"SUM(First:Last!AE56)","v":0},"No",{"$f":"SUM(First:Last!AG56)","v":0},"No",{"$f":"SUM(First:Last!AI56)","v":0},"No",{"$f":"SUM(First:Last!AK56)","v":0},"Out of home",{"$f":"SUM(First:Last!AM56)","v":0}]
["Medical Services",{"$f":"SUM(First:Last!AA57)","v":0}]
["IDD & MH Services",{"$f":"SUM(First:Last!AA58)","v":0}]
["IDD & MH & Medical Services",{"$f":"SUM(First:Last!AA59)","v":0}]
["IDD & Medical Services",{"$f":"SUM(First:Last!AA60)","v":0}]
["MH & Medical Services",{"$f":"SUM(First:Last!AA61)","v":0}]
["Sub Total:",{"$f":"SUM(Data!B26:B32)","v":0},"Sub Total:",{"$f":"SUM(Data!D26:D32)","v":0},"Sub Total:",{"$f":"SUM(Data!F26:F32)","v":0},"Sub Total:",{"$f":"SUM(Data!H26:H32)","v":0},"Sub Total:",{"$f":"SUM(Data!J26:J32)","v":0},"Sub Total:",{"$f":"SUM(Data!L26:L32)","v":0},"Sub Total:",{"$f":"SUM(Data!N26:N32)","v":0},"Grand Total:",{"$f":"SUM(B33,D33,F33,H33,J33,L33,N33)","v":0}]

{"sheet":"Charts","index":5,"n_rows":9,"n_cols":19,"rows_kept":9,"cut":false,"hidden":true,"merged":[]}
[null,null,null,null,null,null,null,null,null,null,null,null,null,null,null,null,null,null,"Types of responses provided to MCOT?"]
[null,null,null,null,null,null,null,null,null,null,null,null,null,null,null,null,null,null,"Was a crisis intervention specialist available?"]
[null,null,null,null,null,null,null,null,null,null,null,null,null,null,null,null,null,null,"Type of referrals made for the individual in crisis or following a crisis event?"]
[null,null,null,null,null,null,null,null,null,null,null,null,null,null,null,null,null,null,"Was law enforcement notified?"]
[null,null,null,null,null,null,null,null,null,null,null,null,null,null,null,null,null,null,"Was the individual transported to a hospital or jail?"]
[null,null,null,null,null,null,null,null,null,null,null,null,null,null,null,null,null,null,"Was the individual reunified to their home and community setting following a crisis event? "]
[null,null,null,null,null,null,null,null,null,null,null,null,null,null,null,null,null,null,"Was the individual at risk of requiring crisis services by exhibiting repeated and severe behavior disturbances that jeopardize the individual's safety or current living arrangement?"]
[null,null,null,null,null,null,null,null,null,null,null,null,null,null,null,null,null,null,"Was the individual referred to crisis respite ? "]
[null,null,null,null,null,null,null,null,null,null,null,null,null,null,null,null,null,null,"What type of respite was provided?"]

{"sheet":"Sheet3","index":6,"n_rows":40,"n_cols":12,"rows_kept":40,"cut":false,"hidden":true,"merged":[]}
["2016 Q1",null,"Yes",null,"Face-to-Face",null,null,null,"IDD Services",null,null,"Comp Code & LIDDA Name/DBA"]
["2016 Q2",null,"No",null,"Webinar",null,null,null,"MH Services",null,null,"10 / Betty Hardwick Center"]
["2016 Q3",null,null,null,"Class room setting",null,null,null,"Medical Services",null,null,"20 / Texas Panhandle Centers"]
["2016 Q4",null,null,null,"Panel",null,null,null,"IDD & MH Services",null,null,"30 / Austin Travis County Integral Care"]
["2017 Q1",null,null,null,null,null,null,null,"IDD & MH & Medical Services",null,null,"40 / Central Counties Services"]
["2017 Q2",null,null,null,null,null,null,null,"IDD & Medical Services",null,null,"51 / Alamo Local Authority for Intellectual and Developmental Disabilties"]
["2017 Q3",null,null,null,null,null,null,null,"MH & Medical Services",null,null,"60 / Center for Life Resources"]
["2017 Q4",null,null,null,null,null,null,null,null,null,null,"70 / Central Plains Center"]
["2018 Q1",null,null,null,null,null,null,null,null,null,null,"90 / Emergence Health Network"]
["2018 Q2",null,null,null,null,null,null,null,null,null,null,"100 / The Gulf Coast Center"]
["2018 Q3",null,null,null,null,null,null,null,null,null,null,"110 / Gulf Bend Center"]
["2018 Q4",null,null,null,null,null,null,null,null,null,null,"130 / Tropical Texas Behavioral Health"]
["2019 Q1",null,null,null,null,null,null,null,null,null,null,"140 / Spindletop Center"]
["2019 Q2",null,null,null,null,null,null,null,null,null,null,"150 / Starcare Speciality Health System"]
["2019 Q3",null,null,null,null,null,null,null,null,null,null,"160 / MHMR Services for the Concho Valley"]
["2019 Q4",null,null,null,null,null,null,null,null,null,null,"170 / Permian Basin Community Center"]
["In Person",null,null,null,"In Home",null,null,null,null,null,null,"180 / Behavioral Health Center of Nueces County"]
["Phone Call",null,null,null,"Out of Home",null,null,null,null,null,null,"190 / Andrews Center"]
["Text",null,null,null,null,null,null,null,null,null,null,"200 / MHMR of Tarrant County"]
["Email",null,null,null,null,null,null,null,null,null,null,"220 / Heart of Texas Region MHMR Center"]
["Fax",null,null,null,null,null,null,null,null,null,null,"230 / Helen Farabee Centers"]
["Other",null,null,null,null,null,null,null,null,null,null,"240 / Community Healthcore"]
[null,null,null,null,null,null,null,null,null,null,null,"250 / MHMR Authority of Brazos Valley"]
[null,null,null,null,null,null,null,null,null,null,null,"260 / Burke Center"]
[null,null,null,null,null,null,null,null,null,null,null,"280 / The Harris Center for Mental Health and IDD"]
[null,null,null,null,null,null,null,null,null,null,null,"290 / Texoma Community Center"]
[null,null,null,null,null,null,null,null,null,null,null,"300 / Metrocare SERVICES"]
[null,null,null,null,null,null,null,null,null,null,null,"350 / Pecan Valley Center for Behavioral and Developmental Healthcare"]
[null,null,null,null,null,null,null,null,null,null,null,"380 / Tri-County Services"]
[null,null,null,null,null,null,null,null,null,null,null,"400 / Denton County MHMR Center"]
[null,null,null,null,null,null,null,null,null,null,null,"410 / LifePath Systems"]
[null,null,null,null,null,null,null,null,null,null,null,"430 / Texana Center"]
[null,null,null,null,null,null,null,null,null,null,null,"440 / ACCESS"]
[null,null,null,null,null,null,null,null,null,null,null,"450 / West Texas Centers"]
[null,null,null,null,null,null,null,null,null,null,null,"460 / Bluebonnet Trails Community Services"]
[null,null,null,null,null,null,null,null,null,null,null,"470 / Hill Country Mental Health & Developmental Disabilities Centers"]
[null,null,null,null,null,null,null,null,null,null,null,"475 / Coastal Plains Community Center"]
[null,null,null,null,null,null,null,null,null,null,null,"480 / Lakes Regional MHMR Center"]
[null,null,null,null,null,null,null,null,null,null,null,"485 / Border Region Behavioral Health Center"]
[null,null,null,null,null,null,null,null,null,null,null,"490 / Camino Real Community Services"]